bitfinex/quotes_ETHUSD_20240915
["timestamp","ask_amount","ask_price","bid_price","bid_amount"]
[1726387381837,0.86601998,2428.2,2427.9,4.9829562]
[1726387382038,0.86601998,2428.2,2428.1,0.25867767]
[1726387382254,0.86601998,2428.2,2428.0,4.37732442]
[1726387382539,0.86601998,2428.2,2428.1,0.25867767]
[1726387385241,0.86601998,2428.2,2428.1,0.64023462]
[1726387385536,3.18081998,2428.3,2428.1,0.64023462]
[1726387385849,2.3148,2428.3,2428.2,0.38155983]
[1726387386218,2.3148,2428.3,2428.2,0.64014076]
[1726387387348,3.613951,2428.3,2428.2,0.64014076]
[1726387387953,2.3148,2428.3,2428.2,0.64014076]
[1726387388235,3.613951,2428.3,2428.2,0.64014076]
[1726387388450,3.613951,2428.3,2428.2,0.64017391]
[1726387388640,3.613951,2428.3,2428.2,0.64017196]
[1726387389427,3.613951,2428.3,2428.2,0.25858093]
[1726387389759,4.56035414,2428.3,2427.9,4.9829562]
[1726387389968,3.613951,2428.3,2428.2,0.25640877]
[1726387390143,3.613951,2428.3,2427.9,4.9829562]
[1726387390342,3.613951,2428.3,2428.2,0.24795025]
[1726387390527,3.613951,2428.3,2427.8,3.84510445]
[1726387390528,2.4504,2428.1,2427.8,0.8642762]
[1726387390732,2.4504,2428.1,2427.7,5.4154243]
[1726387390733,3.3167382,2428.0,2427.9,0.38167829]
[1726387392471,3.3167382,2428.0,2427.7,5.53251445]
[1726387392646,3.3167382,2428.0,2427.8,0.38171083]
[1726387392847,3.3167382,2428.0,2427.7,5.53251445]
[1726387396436,2.4504,2428.0,2427.7,5.53251445]
[1726387396662,2.4504,2428.0,2427.8,0.24835413]
[1726387397066,2.4504,2428.0,2427.7,5.53251445]
[1726387397378,2.4504,2428.0,2427.9,0.24825736]
[1726387397548,2.4504,2428.0,2427.8,0.24835413]
[1726387397729,2.4504,2428.0,2427.9,0.24825736]
[1726387398144,2.4504,2428.0,2427.7,5.53251445]
[1726387398476,2.4504,2428.0,2427.8,0.24835413]
[1726387398873,2.4504,2428.0,2427.7,5.53251445]
[1726387399049,2.4504,2428.0,2427.9,0.24825736]
[1726387399366,2.4504,2428.0,2427.8,0.24835413]
[1726387399570,2.4504,2428.0,2427.7,5.53251445]
[1726387399571,2.4504,2428.0,2427.9,0.24825736]
[1726387399957,2.4504,2428.0,2427.7,5.53251445]
[1726387400144,2.4504,2428.0,2427.9,0.24825736]
[1726387400344,2.4504,2428.0,2427.8,0.24835413]
[1726387400565,2.4504,2428.0,2427.9,0.24825736]
[1726387400946,2.4504,2428.0,2427.7,5.53251445]
[1726387401142,2.4504,2428.0,2427.9,0.24825736]
[1726387401346,2.4504,2428.0,2427.8,0.24835413]
[1726387401579,2.4504,2428.0,2427.9,0.24834446]
[1726387401876,2.4504,2428.0,2427.7,5.53251445]
[1726387402170,2.4504,2428.0,2427.9,0.24834446]
[1726387402336,2.4504,2428.0,2427.8,0.24844123]
[1726387402532,2.4504,2428.0,2427.9,0.24834446]
[1726387403237,2.4504,2428.0,2427.7,9.65154445]
[1726387403439,2.4504,2428.0,2427.8,0.24844123]
[1726387403770,0.8663382,2428.1,2427.7,11.90954445]
[1726387403939,0.8663382,2428.1,2427.9,0.24834446]
[1726387404141,0.8663382,2428.1,2427.8,0.24844123]
[1726387404380,0.8663382,2428.1,2428.0,0.2482477]
[1726387404882,0.8663382,2428.1,2427.7,11.90954445]
[1726387405083,0.8663382,2428.1,2428.0,0.2482477]
[1726387405285,1.74296675,2428.1,2427.7,11.90954445]
[1726387405453,0.8663382,2428.1,2428.0,0.2482477]
[1726387405657,0.8663382,2428.1,2427.7,11.90954445]
[1726387405865,0.8663382,2428.1,2428.0,0.2482477]
[1726387406043,0.8663382,2428.1,2427.7,11.90954445]
[1726387406242,0.8663382,2428.1,2427.8,0.24844123]
[1726387406443,0.8663382,2428.1,2427.7,11.90954445]
[1726387406780,0.8663382,2428.1,2427.8,0.24844123]
[1726387407155,0.8663382,2428.1,2427.9,1.41350445]
[1726387407388,0.8663382,2428.2,2427.9,8.13202891]
[1726387407586,1.29950731,2428.3,2428.0,4.11852]
[1726387407587,0.8663382,2428.3,2428.0,4.11852]
[1726387408081,0.8663382,2428.3,2428.1,0.24815095]
[1726387412971,0.8663382,2428.3,2428.1,1.6616554]
[1726387423182,0.8663382,2428.2,2428.1,1.6616554]
[1726387424317,3.3587382,2428.2,2428.1,0.24815095]
[1726387424631,2.4924,2428.1,2427.8,4.11892]
[1726387424830,3.3578685,2428.1,2427.9,0.2402185]
[1726387426712,3.3578685,2428.1,2427.9,1.65372295]
[1726387436054,0.8654685,2428.0,2427.9,1.65372295]
[1726387436708,3.3578685,2428.1,2427.9,1.65372295]
[1726387438854,0.8654685,2428.0,2427.9,0.2402185]
[1726387439015,0.8654685,2428.0,2427.7,5.53252445]
[1726387439353,2.3744,2427.9,2427.8,0.23221894]
[1726387439731,2.3744,2427.9,2427.7,4.11902]
[1726387439908,2.3744,2427.9,2427.8,0.23223834]
[1726387440308,2.3744,2427.9,2427.7,4.11902]
[1726387440540,2.3744,2427.9,2427.8,0.23223834]
[1726387441252,2.3744,2427.9,2427.3,0.8642762]
[1726387441253,2.2773,2427.8,2427.3,0.8642762]
[1726387441564,0.86558168,2427.6,2427.4,0.23253106]
[1726387442765,2.2773,2427.5,2427.4,0.23253106]
[1726387442932,3.14288168,2427.5,2427.4,0.23253106]
[1726387443138,3.14288168,2427.5,2427.0,1.41350445]
[1726387443139,2.2773,2427.5,2427.0,1.41350445]
[1726387443461,7.26234168,2427.5,2427.0,1.41350445]
[1726387443638,7.26234168,2427.5,2427.1,0.23282151]
[1726387444152,6.39676,2427.5,2427.1,0.23282151]
[1726387447164,2.2773,2427.5,2427.2,1.41350445]
[1726387447468,2.2773,2427.5,2427.3,0.23262787]
[1726387447620,2.2773,2427.5,2427.2,1.41350445]
[1726387447822,2.2773,2427.5,2427.3,0.23262787]
[1726387448176,2.2773,2427.5,2427.2,1.41350445]
[1726387448321,2.2773,2427.5,2427.4,0.23253106]
[1726387448524,2.2773,2427.5,2427.3,0.23262787]
[1726387448732,2.2773,2427.5,2427.4,0.23253106]
[1726387449175,2.2773,2427.5,2427.2,1.41350445]
[1726387449341,2.2773,2427.5,2427.4,0.23253106]
[1726387449542,2.2773,2427.5,2427.3,0.23262787]
[1726387449742,2.2773,2427.5,2427.4,0.23253106]
[1726387450180,2.2773,2427.5,2427.2,1.41350445]
[1726387450470,2.2773,2427.5,2427.3,0.23262787]
[1726387450678,2.2773,2427.5,2427.2,1.41350445]
[1726387450849,2.2773,2427.5,2427.3,0.23262787]
[1726387451052,2.2773,2427.5,2427.2,1.41350445]
[1726387451252,2.2773,2427.5,2427.3,0.23262787]
[1726387451449,2.2773,2427.5,2427.2,1.41350445]
[1726387451766,2.2773,2427.5,2427.3,0.23262787]
[1726387452281,2.2773,2427.5,2427.4,0.23253106]
[1726387452482,2.2773,2427.5,2427.2,1.41350445]
[1726387452779,2.2773,2427.5,2427.3,0.23262787]
[1726387453145,2.2773,2427.5,2427.2,1.41350445]
[1726387453346,2.2773,2427.5,2427.4,0.23262546]
[1726387453842,2.2773,2427.5,2427.2,1.41350445]
[1726387454178,2.2773,2427.5,2427.3,0.23272227]
[1726387454544,2.2773,2427.5,2427.2,1.41350445]
[1726387454883,2.2773,2427.5,2427.3,0.23272227]
[1726387455071,2.2773,2427.5,2427.2,1.41350445]
[1726387455246,2.2773,2427.5,2427.3,0.23272227]
[1726387455446,2.2773,2427.5,2427.2,1.41350445]
[1726387455775,2.2773,2427.5,2427.3,0.23272227]
[1726387456151,2.2773,2427.5,2427.2,1.41350445]
[1726387456356,2.2773,2427.5,2427.4,0.23262546]
[1726387456568,2.2773,2427.5,2427.3,0.23272227]
[1726387456746,2.2773,2427.5,2427.4,0.23262546]
[1726387457179,2.2773,2427.5,2427.2,1.41350445]
[1726387457363,2.2773,2427.5,2427.4,0.23262546]
[1726387457564,2.2773,2427.5,2427.3,0.23272227]
[1726387457740,2.2773,2427.5,2427.4,0.23262546]
[1726387458139,2.2773,2427.5,2427.1,4.12004]
[1726387458140,2.2773,2427.5,2427.2,4.11992]
[1726387458346,4.11912,2427.7,2427.4,0.23262546]
[1726387458584,6.44782,2427.7,2427.3,0.231784]
[1726387458886,7.40356793,2427.7,2427.4,0.23168719]
[1726387459058,7.40356793,2427.7,2427.2,7.90602445]
[1726387459384,7.40356793,2427.7,2427.3,0.231784]
[1726387459746,7.40356793,2427.7,2427.2,7.90602445]
[1726387459946,6.44782,2427.7,2427.4,0.23168719]
[1726387460287,6.44782,2427.7,2427.5,0.23159039]
[1726387460493,6.44782,2427.7,2427.2,7.90602445]
[1726387460783,7.63643793,2427.7,2427.3,0.231784]
[1726387461154,7.63643793,2427.7,2427.2,7.90602445]
[1726387461351,7.63643793,2427.7,2427.4,0.23168719]
[1726387461556,7.63643793,2427.7,2427.3,0.231784]
[1726387461752,7.63643793,2427.7,2427.5,0.23159039]
[1726387462100,7.63643793,2427.7,2427.6,0.2314936]
[1726387462263,7.63643793,2427.7,2427.2,7.90602445]
[1726387462264,6.44782,2427.7,2427.2,7.90602445]
[1726387462469,6.44782,2427.7,2427.3,0.231784]
[1726387462670,6.44782,2427.7,2427.2,7.90602445]
[1726387462860,6.44782,2427.7,2427.3,0.231784]
[1726387463058,7.63643793,2427.7,2427.2,7.90602445]
[1726387463261,7.63643793,2427.7,2427.3,0.231784]
[1726387463460,7.63643793,2427.7,2427.2,7.90602445]
[1726387463765,7.63643793,2427.7,2427.3,0.231784]
[1726387464158,7.63643793,2427.7,2427.2,7.90602445]
[1726387464369,7.63643793,2427.7,2427.4,0.23168719]
[1726387464567,7.63643793,2427.7,2427.3,0.231784]
[1726387464859,7.63643793,2427.7,2427.4,0.23165109]
[1726387465189,7.63643793,2427.7,2427.2,7.90602445]
[1726387465398,7.63643793,2427.7,2427.5,0.23155429]
[1726387465699,0.85020196,2427.6,2427.2,6.49252]
[1726387465872,7.63643793,2427.7,2427.2,6.49252]
[1726387466073,6.44782,2427.7,2427.2,6.49252]
[1726387467083,2.4822,2427.6,2427.2,4.11992]
[1726387469215,2.4822,2427.6,2427.1,4.12003]
[1726387471786,2.4822,2427.6,2427.2,0.23184472]
[1726387473438,2.4822,2427.6,2427.2,1.64534917]
[1726387475104,6.6015,2427.6,2427.2,1.64534917]
[1726387479149,7.46708168,2427.6,2427.2,1.64534917]
[1726387483464,0.86558168,2427.5,2427.2,1.64534917]
[1726387485468,0.86558168,2427.4,2427.2,1.64534917]
[1726387485666,0.86558168,2427.5,2427.2,1.64534917]
[1726387486037,0.86558168,2427.4,2427.2,1.64534917]
[1726387486239,0.86558168,2427.5,2427.2,1.64534917]
[1726387486648,0.86558168,2427.4,2427.2,1.64534917]
[1726387487139,0.86558168,2427.4,2427.2,0.23184472]
[1726387488558,0.86558168,2427.3,2427.2,0.23184472]
[1726387488763,0.86558168,2427.4,2427.2,0.84315709]
[1726387488932,0.86558168,2427.4,2427.2,0.23184472]
[1726387489335,0.86558168,2427.3,2427.2,0.23184472]
[1726387489557,0.86558168,2427.4,2427.2,0.23184472]
[1726387489878,0.86558168,2427.4,2427.2,0.84316822]
[1726387490085,0.86558168,2427.4,2427.2,0.23184472]
[1726387491766,1.29837253,2427.5,2427.2,0.23184472]
[1726387491767,0.86558168,2427.3,2427.2,0.23184472]
[1726387491966,0.86558168,2427.3,2427.2,0.84315884]
[1726387492275,0.86558168,2427.3,2427.2,0.23184472]
[1726387496361,0.86558168,2427.3,2427.2,1.64534917]
[1726387497398,0.86558168,2427.4,2427.2,2.25667099]
[1726387497635,0.86558168,2427.4,2427.2,1.64534917]
[1726387498132,0.86558168,2427.3,2427.2,1.64534917]
[1726387501541,0.86558168,2427.3,2427.2,0.23184472]
[1726387502503,0.86558168,2427.4,2427.2,0.23184472]
[1726387502832,0.86558168,2427.3,2427.2,0.23184472]
[1726387503344,0.86558168,2427.3,2427.2,1.64534917]
[1726387503642,0.86558168,2427.4,2427.2,2.74713518]
[1726387503805,0.86558168,2427.4,2427.2,1.64534917]
[1726387506739,0.86558168,2427.4,2427.2,4.00604917]
[1726387507749,0.86558168,2427.4,2427.2,1.64534917]
[1726387508243,0.86558168,2427.3,2427.2,0.23184472]
[1726387509237,3.14198168,2427.4,2427.2,0.23184472]
[1726387510307,0.86558168,2427.3,2427.2,0.23184472]
[1726387510738,2.2764,2427.4,2427.2,0.23184472]
[1726387510739,3.14198168,2427.4,2427.2,0.23184472]
[1726387511113,0.86558168,2427.3,2427.2,0.23184472]
[1726387513508,0.86558168,2427.3,2427.2,1.64534917]
[1726387517256,0.86558168,2427.6,2427.5,4.11935]
[1726387517461,0.86558168,2427.8,2427.5,6.63462475]
[1726387517746,0.86558168,2427.8,2427.7,1.41350445]
[1726387518120,0.86558168,2427.8,2427.7,1.6448818]
[1726387518443,3.57477253,2427.9,2427.7,1.6448818]
[1726387518444,3.14198168,2427.9,2427.7,1.6448818]
[1726387521519,2.2764,2427.9,2427.7,1.6448818]
[1726387521719,3.14198168,2427.9,2427.7,1.6448818]
[1726387523518,0.86558168,2428.0,2427.7,1.6448818]
[1726387527446,7.39922168,2428.1,2427.7,1.6448818]
[1726387527871,0.86558168,2428.0,2427.7,1.6448818]
[1726387530081,7.39922168,2428.1,2427.7,1.6448818]
[1726387530372,0.86558168,2428.0,2427.7,1.6448818]
[1726387530678,7.39922168,2428.1,2427.7,1.6448818]
[1726387530992,8.76746097,2428.1,2427.7,1.6448818]
[1726387531273,0.86558168,2428.0,2427.7,1.6448818]
[1726387531460,8.76746097,2428.1,2427.7,1.6448818]
[1726387531667,0.86558168,2428.0,2427.7,1.6448818]
[1726387532180,8.76746097,2428.1,2427.7,1.6448818]
[1726387541285,4.64892097,2428.1,2427.7,1.6448818]
[1726387546413,4.64892097,2428.1,2427.7,5.7639718]
[1726387549516,0.86558168,2428.0,2427.7,5.7639718]
[1726387550013,4.64892097,2428.1,2427.7,5.7639718]
[1726387550456,0.86558168,2428.0,2427.7,5.7639718]
[1726387551358,4.64892097,2428.1,2427.7,5.7639718]
[1726387551649,0.86558168,2428.0,2427.7,5.7639718]
[1726387551849,3.28068168,2428.1,2427.7,5.7639718]
[1726387552054,3.28068168,2428.1,2427.8,4.11891]
[1726387552212,0.86558168,2428.0,2427.8,6.60301]
[1726387552664,0.86558168,2428.1,2427.9,4.1187]
[1726387552825,0.86558168,2428.2,2427.9,4.1187]
[1726387553026,0.86558168,2428.2,2428.0,0.23108428]
[1726387557151,0.86558168,2428.2,2427.8,10.72187]
[1726387557480,0.86558168,2428.2,2427.9,0.23118104]
[1726387557643,0.86558168,2428.1,2427.9,0.23118104]
[1726387558143,0.86558168,2428.2,2427.9,0.23118104]
[1726387558379,0.86558168,2428.1,2427.9,0.23118104]
[1726387559888,0.86558168,2428.1,2427.9,4.34996104]
[1726387561165,0.86558168,2428.1,2427.9,0.23118104]
[1726387561849,0.86558168,2428.0,2427.9,0.23118104]
[1726387563844,0.86590613,2428.0,2427.9,0.23118104]
[1726387564147,1.29837253,2428.1,2427.9,0.23118104]
[1726387564343,0.8659029,2428.0,2427.9,0.23118104]
[1726387564788,0.86589841,2428.0,2427.9,0.23118104]
[1726387565286,1.29837253,2428.1,2427.9,0.23118104]
[1726387565494,0.86589779,2428.0,2427.9,0.23118104]
[1726387566356,0.86589433,2428.0,2427.9,0.23118104]
[1726387566551,0.86589887,2428.0,2427.9,0.23118104]
[1726387566752,1.29837253,2428.1,2427.9,0.23118104]
[1726387567051,0.86590096,2428.0,2427.9,0.23118104]
[1726387569086,0.86590096,2428.1,2427.9,0.23118104]
[1726387569287,0.86590096,2428.0,2427.9,0.23118104]
[1726387569496,0.86590096,2428.0,2427.9,4.34996104]
[1726387573871,0.86590096,2428.1,2427.9,4.34996104]
[1726387574070,0.86590096,2428.0,2427.9,4.34996104]
[1726387576693,0.86590096,2428.1,2427.9,4.34996104]
[1726387576902,0.86590096,2428.0,2427.9,4.34996104]
[1726387577783,0.86590096,2428.1,2428.0,4.11861]
[1726387577971,0.86590096,2428.1,2428.0,4.34970261]
[1726387578172,0.86590096,2428.1,2428.0,6.73410261]
[1726387590512,0.86590096,2428.1,2428.0,4.34970261]
[1726387594992,0.86590096,2428.1,2428.0,0.23109261]
[1726387595247,3.63877253,2428.1,2427.8,4.11882]
[1726387595421,3.63877253,2428.1,2427.9,0.23118937]
[1726387595422,0.86575837,2428.0,2427.9,0.23118937]
[1726387598727,0.86593377,2428.0,2427.9,0.23118937]
[1726387598927,1.29837253,2428.0,2427.9,0.23118937]
[1726387599336,3.63877253,2428.1,2427.9,0.23118937]
[1726387599697,4.80416683,2428.1,2427.9,0.23118937]
[1726387599899,7.73218253,2428.0,2427.9,0.23118937]
[1726387600100,2.3152,2427.7,2427.2,4.98518173]
[1726387600343,0.86575626,2427.5,2427.2,4.98518173]
[1726387600545,0.86575626,2427.5,2427.2,4.11985]
[1726387600712,0.86575626,2427.5,2427.2,8.23972]
[1726387600917,0.86575626,2427.5,2427.2,4.11985]
[1726387602536,0.86575626,2427.6,2427.2,4.11985]
[1726387604898,0.86575626,2427.6,2427.1,7.94263445]
[1726387604899,2.13752333,2427.6,2427.1,7.94263445]
[1726387605099,2.3152,2427.5,2427.1,4.12013]
[1726387606656,2.3152,2427.5,2427.2,0.23200981]
[1726387607752,2.3152,2427.5,2427.0,5.53369445]
[1726387607910,2.3152,2427.5,2427.3,0.231913]
[1726387608115,3.04522663,2427.5,2427.0,5.53369445]
[1726387608415,2.3152,2427.5,2427.0,5.53369445]
[1726387608613,2.3152,2427.5,2427.1,0.23210664]
[1726387609161,2.3152,2427.5,2427.1,4.35221664]
[1726387610153,2.3152,2427.5,2427.1,0.23210664]
[1726387612059,2.3152,2427.5,2427.1,4.35220664]
[1726387620529,2.3152,2427.5,2427.2,4.11995]
[1726387620950,2.3152,2427.5,2427.3,0.23207127]
[1726387621432,2.3152,2427.5,2427.4,0.23197446]
[1726387621641,2.3152,2427.5,2427.2,4.11995]
[1726387621949,2.3152,2427.5,2427.3,0.23207127]
[1726387622350,2.3152,2427.5,2427.2,4.11995]
[1726387622546,2.3152,2427.5,2427.4,0.23197446]
[1726387622775,2.3152,2427.5,2427.3,0.23207127]
[1726387622948,2.3152,2427.5,2427.4,0.23197446]
[1726387623367,2.3152,2427.5,2427.2,4.11995]
[1726387623585,2.3152,2427.5,2427.4,0.23197446]
[1726387623758,2.958644,2427.5,2427.3,0.23207127]
[1726387623962,2.3152,2427.5,2427.4,0.23197446]
[1726387624346,2.3152,2427.5,2427.2,4.11995]
[1726387624602,2.3152,2427.5,2427.4,0.23197446]
[1726387625056,2.3152,2427.5,2427.2,4.11995]
[1726387625257,2.3152,2427.5,2427.3,0.23207127]
[1726387625573,2.3152,2427.5,2427.2,4.11995]
[1726387625772,2.3152,2427.5,2427.4,0.23197446]
[1726387625976,2.3152,2427.5,2427.3,0.23207127]
[1726387626280,2.3152,2427.5,2427.2,4.11995]
[1726387626281,2.3152,2427.5,2427.4,0.23197446]
[1726387626487,2.3152,2427.5,2427.2,4.11995]
[1726387626681,2.3152,2427.5,2427.4,0.23197446]
[1726387626986,2.3152,2427.5,2427.2,4.11995]
[1726387627196,2.3152,2427.5,2427.4,0.23197446]
[1726387627667,2.3152,2427.5,2427.2,4.11995]
[1726387627873,2.3152,2427.5,2427.3,0.23207127]
[1726387628085,2.3152,2427.5,2427.2,4.11995]
[1726387628251,2.3152,2427.5,2427.3,0.23207127]
[1726387628447,2.3152,2427.5,2427.2,4.11995]
[1726387628679,2.3152,2427.5,2427.3,0.23207127]
[1726387628873,2.3152,2427.5,2427.2,4.11995]
[1726387629068,2.3152,2427.5,2427.3,0.23207127]
[1726387629252,2.3152,2427.5,2427.2,4.11995]
[1726387629453,2.3152,2427.5,2427.3,0.23207127]
[1726387629671,2.3152,2427.5,2427.2,4.11995]
[1726387629993,2.3152,2427.5,2427.3,0.23207127]
[1726387630366,2.3152,2427.5,2427.2,4.11995]
[1726387630565,2.3152,2427.5,2427.4,0.23197446]
[1726387630761,2.3152,2427.5,2427.3,0.23207127]
[1726387630966,2.3152,2427.5,2427.4,0.23197446]
[1726387631286,2.3152,2427.5,2427.2,4.11995]
[1726387631588,2.3152,2427.5,2427.3,0.23207127]
[1726387631952,2.3152,2427.5,2427.2,4.11995]
[1726387632179,2.3152,2427.5,2427.4,0.23197446]
[1726387632382,2.3152,2427.5,2427.3,0.23207127]
[1726387632553,2.3152,2427.5,2427.4,0.23197446]
[1726387632970,2.3152,2427.5,2427.2,4.11995]
[1726387633193,2.3152,2427.5,2427.4,0.2319828]
[1726387633688,2.3152,2427.5,2427.2,4.11995]
[1726387633897,2.3152,2427.5,2427.3,0.2320796]
[1726387634389,2.3152,2427.5,2427.1,5.53362445]
[1726387634596,2.3152,2427.5,2427.4,0.2319828]
[1726387634757,2.95865,2427.5,2427.1,5.53362445]
[1726387634957,2.95865,2427.5,2427.4,0.2319828]
[1726387635191,2.95865,2427.5,2427.1,5.53362445]
[1726387635373,2.95865,2427.5,2427.4,0.2319828]
[1726387635999,2.95865,2427.5,2427.1,5.53362445]
[1726387636288,2.95865,2427.5,2427.2,4.11995]
[1726387636289,2.3152,2427.5,2427.2,4.11995]
[1726387636589,2.3152,2427.5,2427.3,0.2320796]
[1726387636955,2.3152,2427.5,2427.2,4.11995]
[1726387637308,2.3152,2427.5,2427.3,0.2320796]
[1726387637657,3.23235626,2427.7,2427.2,4.11986]
[1726387637853,3.23235626,2427.7,2427.3,0.2320796]
[1726387638091,4.68241658,2427.7,2427.2,4.11986]
[1726387638409,4.68241658,2427.7,2427.4,0.2319828]
[1726387638560,4.68241658,2427.7,2427.3,0.2320796]
[1726387638755,3.23235626,2427.7,2427.2,4.11986]
[1726387639060,3.23235626,2427.7,2427.3,0.2320796]
[1726387639393,0.86575626,2427.6,2427.2,4.11986]
[1726387639583,0.86575626,2427.6,2427.4,0.2319828]
[1726387639784,0.86575626,2427.6,2427.3,0.2320796]
[1726387639983,0.86575626,2427.6,2427.5,0.231886]
[1726387640182,0.86575626,2427.6,2427.4,0.2319828]
[1726387640587,0.86575626,2427.6,2427.2,4.11986]
[1726387640899,0.86575626,2427.6,2427.2,8.23974]
[1726387641097,1.4835878,2427.6,2427.3,0.2320796]
[1726387641391,2.3736,2427.5,2427.3,0.2320796]
[1726387641595,2.3736,2427.5,2427.2,4.11986]
[1726387641895,2.3736,2427.5,2427.3,0.2320796]
[1726387642059,2.3736,2427.5,2427.2,4.11986]
[1726387642259,2.3736,2427.5,2427.3,0.2320796]
[1726387642459,2.3736,2427.5,2427.2,4.11986]
[1726387642692,2.3736,2427.5,2427.3,0.2320796]
[1726387642880,2.3736,2427.5,2427.2,4.11986]
[1726387643194,2.3736,2427.5,2427.3,0.2320796]
[1726387643492,3.23935626,2427.5,2427.2,4.11986]
[1726387643705,3.23935626,2427.5,2427.3,0.2320796]
[1726387644174,3.23935626,2427.5,2427.2,4.11986]
[1726387644381,3.23935626,2427.5,2427.4,0.2319828]
[1726387644794,3.23935626,2427.5,2427.2,4.11986]
[1726387644983,3.23935626,2427.5,2427.4,0.2319828]
[1726387645182,3.23935626,2427.5,2427.3,0.2320796]
[1726387645378,3.23935626,2427.5,2427.4,0.2319828]
[1726387645379,3.6722344,2427.5,2427.4,0.2319828]
[1726387645709,2.3736,2427.5,2427.4,0.38132449]
[1726387646074,2.3736,2427.5,2427.4,0.61330729]
[1726387646277,3.6722344,2427.5,2427.4,0.61330729]
[1726387646608,3.6722344,2427.5,2427.4,0.61330936]
[1726387647165,3.6722344,2427.5,2427.4,0.2319828]
[1726387647700,3.6722344,2427.5,2427.4,0.61330834]
[1726387648017,3.6722344,2427.5,2427.2,4.11986]
[1726387648195,2.3736,2427.5,2427.4,0.61330703]
[1726387648516,3.23941448,2427.5,2427.4,0.61330703]
[1726387648694,0.86581448,2427.5,2427.4,0.61330703]
[1726387650767,1.2986344,2427.6,2427.4,0.61330703]
[1726387650964,1.2986344,2427.5,2427.4,0.2319828]
[1726387651280,3.5527344,2427.5,2427.2,4.11986]
[1726387651592,0.86575115,2427.4,2427.3,0.2320796]
[1726387651908,0.86575115,2427.4,2427.2,4.11986]
[1726387652123,0.86575115,2427.4,2427.3,0.61340845]
[1726387652277,4.60061234,2427.4,2427.3,0.2320796]
[1726387652608,2.2541,2427.3,2426.8,4.98583173]
[1726387652828,0.8653457,2427.1,2426.8,0.86533173]
[1726387652968,3.1194457,2427.0,2426.7,0.86533173]
[1726387653167,3.1194457,2427.0,2426.6,4.98619173]
[1726387653393,3.1194457,2427.0,2426.7,0.4855578]
[1726387653613,2.94921156,2427.0,2426.6,9.10707173]
[1726387653911,2.94921156,2427.0,2426.7,6.88520095]
[1726387653912,2.2541,2427.0,2426.7,6.88520095]
[1726387654070,2.2541,2427.0,2426.7,6.39964618]
[1726387654270,2.2541,2427.0,2426.8,0.485526]
[1726387654511,2.2541,2427.0,2426.7,6.39964618]
[1726387654705,2.2541,2427.0,2426.7,6.01987074]
[1726387655307,2.2541,2427.0,2426.7,5.53431445]
[1726387656407,3.92158453,2427.2,2426.7,7.81701445]
[1726387657421,3.92158453,2427.2,2426.7,3.69620445]
[1726387657625,1.02114603,2427.1,2426.7,3.69620445]
[1726387657848,3.92158453,2427.2,2426.7,7.81699445]
[1726387658027,3.92158453,2427.2,2426.8,4.12062]
[1726387658334,3.1194457,2427.2,2426.8,4.12062]
[1726387659647,3.1194457,2427.2,2426.7,3.69620445]
[1726387661296,3.1194457,2427.2,2426.7,7.81702445]
[1726387665711,2.2541,2427.2,2426.7,7.81702445]
[1726387665925,4.38583228,2427.2,2426.7,5.53432445]
[1726387666528,2.3237,2427.1,2426.7,4.12082]
[1726387666743,2.3237,2427.1,2426.8,0.22479071]
[1726387666946,3.72302908,2427.1,2426.8,0.22479071]
[1726387667118,3.72302908,2427.1,2426.6,8.24173]
[1726387667439,3.72302908,2427.1,2426.7,0.22488757]
[1726387668722,3.72302908,2427.1,2426.7,4.34568757]
[1726387669415,3.72302908,2427.1,2426.7,0.22488757]
[1726387669655,0.87083748,2427.0,2426.7,0.22488757]
[1726387669863,2.3237,2426.9,2426.7,0.22488757]
[1726387670025,2.3237,2426.9,2426.5,7.99375445]
[1726387670390,2.3237,2426.9,2426.6,0.22498443]
[1726387672635,2.3237,2426.8,2426.6,0.22498443]
[1726387673044,2.3237,2426.8,2426.5,1.41350445]
[1726387673359,2.3237,2426.8,2426.6,0.22514001]
[1726387673870,3.05520275,2426.8,2426.6,0.22514001]
[1726387674025,2.3237,2426.6,2426.2,5.53507445]
[1726387674578,2.3237,2426.6,2426.1,2.4988338]
[1726387674784,2.3237,2426.6,2426.2,1.41350445]
[1726387675099,3.53992985,2426.6,2426.2,1.41350445]
[1726387681796,3.53992985,2426.6,2426.3,0.22555012]
[1726387682004,3.53992985,2426.6,2426.2,1.41350445]
[1726387682172,3.53992985,2426.6,2426.4,0.22545323]
[1726387682372,3.53992985,2426.6,2426.3,0.22555012]
[1726387682557,3.53992985,2426.6,2426.2,1.41350445]
[1726387682754,3.53992985,2426.6,2426.4,0.22545323]
[1726387682755,7.66100985,2426.6,2426.4,0.22545323]
[1726387683059,2.4748,2426.4,2426.1,0.0397338]
[1726387690926,2.4748,2426.4,2426.1,1.45323825]
[1726387691427,2.4748,2426.4,2426.2,1.41350445]
[1726387692624,6.59612,2426.7,2426.2,3.73980445]
[1726387692830,10.71707,2426.7,2426.2,3.73980445]
[1726387693027,1.071707,2426.6,2426.2,3.73980445]
[1726387693533,5.192697,2426.6,2426.2,1.41350445]
[1726387696627,5.192697,2426.6,2426.3,0.2257169]
[1726387696833,5.192697,2426.6,2426.2,1.41350445]
[1726387697142,5.192697,2426.6,2426.4,0.22562835]
[1726387697305,5.192697,2426.6,2426.3,0.22572523]
[1726387697306,1.1788817,2426.5,2426.3,0.22572523]
[1726387697698,1.1788817,2426.5,2426.4,0.22562835]
[1726387697899,4.12099,2426.6,2426.4,0.22562835]
[1726387698098,4.12099,2426.6,2426.2,1.41350445]
[1726387698640,4.12099,2426.6,2426.3,0.22572523]
[1726387699015,4.12099,2426.6,2426.2,1.41350445]
[1726387699217,4.12099,2426.6,2426.4,0.22562835]
[1726387699438,5.27923557,2426.6,2426.2,1.41350445]
[1726387699598,5.27923557,2426.6,2426.5,0.22553147]
[1726387699802,5.27923557,2426.6,2426.2,1.41350445]
[1726387700003,5.27923557,2426.6,2426.5,0.22553147]
[1726387701214,5.27923557,2426.6,2426.1,4.1615038]
[1726387701418,5.27923557,2426.6,2426.5,0.22553147]
[1726387701618,5.27923557,2426.6,2426.1,4.1615038]
[1726387702429,5.27923557,2426.6,2426.2,0.22582213]
[1726387704112,1.15824557,2426.6,2426.2,5.76098658]
[1726387704347,2.4752,2426.7,2426.2,8.02028658]
[1726387704643,4.12086,2426.7,2426.2,4.34739213]
[1726387704808,3.006887,2426.6,2426.2,4.34739213]
[1726387705454,3.8722327,2426.6,2426.2,4.34739213]
[1726387705624,3.006887,2426.6,2426.2,4.34739213]
[1726387706149,3.006887,2426.6,2426.2,0.22582213]
[1726387707406,3.8722327,2426.6,2426.2,0.22582213]